Cogmind - Beta 12 *** ADVENTURER MODE // 2024.02.15 @ 23:47:36 Player: Occam Result: Self-destructed Performance ------------- Evolutions (3) 1500 Regions Visited (8) 1600 Robots Destroyed (167) 835 Value Destroyed (5761) 5761 Prototype IDs (37) 740 Alien Tech Used (0) 0 Bonus (1020) 1020 TOTAL SCORE: 11456 Bonus ------- High Alert Combat Kills 535 Follower Combat Kills 149 Entered Garrisons 200 Aligned with FarCom 300 Friendly Fire -164 Cogmind --------- Core Integrity 673/700 Matter 180/300 Energy 150/150 System Corruption 0% Temperature Cool (0) Movement Flying (97) Ox1 Location -7/Factory Parts ------- > --- POWER (1) -------- Micro Fission Core > --- PROPULSION (4) --- Improved VTOL Module Improved VTOL Module Cooled VTOL Module > --- UTILITY (6) ------ Structural Scanner Armor Integrity Analyzer Light Armor Plating Improved Light Armor Plating Corruption Screen > --- WEAPON (2) ------- Enhanced Autogun Great Maul > --- INVENTORY (5) ---- Improved Signal Interpreter Force Booster Advanced Beam Rifle Missile Launcher Datajack Peak State ------------ > --- POWER ------------ Reinforced Fission Core > --- PROPULSION ------- Armored Wheel Armored Huge Wheel Cooled VTOL Module > --- UTILITY ---------- Improved Heat Sink Huge Storage Unit Structural Scanner Light Armor Plating Hardlight Generator > --- WEAPON ----------- Heavy Phase Cannon Hypervelocity Coil Gun > --- INVENTORY -------- Heavy Ion Engine Micro Fission Core Armored Treads Compact Wheel Improved VTOL Module Improved VTOL Module Improved Heat Sink High-capacity Matter Pod Structural Scanner Improved Signal Interpreter Hardened Medium Armor Plating Improved Light Armor Plating Sensor Drone Bay Advanced Beam Rifle Beamcaster EM Pulse Cannon EM Pulse Cannon YOLO Cannon Enhanced Autogun Enhanced Autogun Missile Launcher Missile Launcher Datajack Great Maul [Rating: 51] Favorites ----------- Power Heavy Ion Engine Engine Heavy Ion Engine Power Core Reinforced Fission Core Propulsion Light Treads Treads Light Treads Leg Aluminum Leg Wheel Compact Wheel Flight Unit Improved VTOL Module Utility Huge Storage Unit Device Structural Scanner Storage Huge Storage Unit Processor Corruption Screen Protection Medium Armor Plating Weapon Beam Cannon Energy Gun Advanced Beam Rifle Energy Cannon Beam Cannon Ballistic Gun Enhanced Autogun Launcher Missile Launcher Impact Weapon Great Maul Slashing Weapon Blade Saw Special Melee Weapon Datajack Build | -11 -10 -10 -10 -9 -8 -8 -8 -7 ------- Run | Jun Mat Min Exi Min Mat Gar Mat Fac Slots Evolved 6 | . . . . . 4 . . 2 Power . | . . . . . . . . . Propulsion 2 | . . . . . 1 . . 1 Utility 4 | . . . . . 3 . . 1 Weapon . | . . . . . . . . . Parts Attached 124 | 3 9 1 2 3 42 27 24 13 Power 8 | . 1 . . 1 3 1 1 1 Engine 5 | . 1 . . 1 3 . . . Core 3 | . . . . . . 1 1 1 Reactor . | . . . . . . . . . Propulsion 30 | 2 1 . . . 10 4 6 7 Treads 17 | 1 . . . . 9 3 3 1 Leg . | . . . . . . . . . Wheel 8 | 1 1 . . . 1 1 3 1 Hover . | . . . . . . . . . Flight 5 | . . . . . . . . 5 Utility 38 | 1 3 1 . 2 13 7 8 3 Device 15 | 1 1 1 . 2 3 1 6 . Storage 2 | . 2 . . . . . . . Processor 3 | . . . . . 1 . . 2 Hackware . | . . . . . . . . . Protection 18 | . . . . . 9 6 2 1 Artifact . | . . . . . . . . . Weapon 48 | . 4 . 2 . 16 15 9 2 Energy Gun 12 | . 2 . . . 4 5 1 . Energy Cannon 12 | . 2 . 2 . 6 1 1 . Ballistic Gun 14 | . . . . . 6 3 4 1 Ballistic Cannon . | . . . . . . . . . Launcher 7 | . . . . . . 4 3 . Special Weapon . | . . . . . . . . . Impact Weapon 1 | . . . . . . . . 1 Slashing Weapon 1 | . . . . . . 1 . . Piercing Weapon . | . . . . . . . . . Special Melee Weapon 1 | . . . . . . 1 . . Unidentified Prototypes 9 | . . 1 . . 6 . 1 1 Parts Lost 6 | . 1 . . . . 2 2 1 Power . | . . . . . . . . . Propulsion 2 | . . . . . . . 1 1 Utility 4 | . 1 . . . . 2 1 . Weapon . | . . . . . . . . . Highest Loss Streak 2 | . 1 . . . . 2 1 1 To Critical Strikes . | . . . . . . . . . Average Slot Usage (%) 96 | . 99 100 79 100 99 98 91 80 Engine 9 | . 14 14 14 14 9 6 . . Core 1 | . . . . . . 2 8 7 Treads 14 | . 14 14 14 14 17 18 8 . Wheel 11 | . 14 14 14 14 9 9 10 13 Device 15 | . 13 14 14 14 18 8 22 19 Storage 10 | . 14 14 14 14 9 9 9 5 Protection 11 | . . . . . 17 25 13 8 Energy Gun 3 | . 2 . . . 7 5 . . Energy Cannon 10 | . 22 28 7 28 3 . 6 5 Ballistic Gun 6 | . 3 . . . 7 11 10 6 Naked Turns . | . . . . . . . . . Heaviest Build 141 | 11 92 105 105 97 117 141 135 127 Greatest Support 56 | 20 16 16 16 16 16 16 40 56 Greatest Overweight (x) 9 | 1 9 6 6 6 7 8 8 3 Average Overweight (x) 4 | . 3 5 6 5 6 7 4 1 Largest Inventory Capacity 25 | 8 25 25 25 25 25 25 25 25 Average Capacity 23 | 8 15 25 25 25 25 25 25 20 Most Carried 25 | 7 22 24 25 25 25 25 25 25 Average Carried 22 | 5 13 23 24 24 24 24 24 20 Final Capacity 25 | 8 25 25 25 25 25 25 25 5 Final Carried 25 | 6 22 24 23 25 25 24 25 5 Class Distribution -------------------- 84% | Mutant 14% | Scavenger-Mutant Dominant Class ---------------- Mutant | -10/Materials Mutant | -10/Mines Mutant | -10/Exiles Mutant | -9/Mines Mutant | -8/Materials Mutant | -8/Garrison Mutant | -8/Materials Mutant | -7/Factory Resources | -11 -10 -10 -10 -9 -8 -8 -8 -7 ----------- Run | Jun Mat Min Exi Min Mat Gar Mat Fac Matter Collected 3061 | 240 343 17 . 73 800 653 910 25 Remotely . | . . . . . . . . . Salvage Created 6194 | 92 859 70 . 552 2188 722 1617 94 Parts 352 | 4 49 1 . 27 112 53 100 6 Haulers Intercepted 10 | . 2 . . . 4 . 4 . Recyclers Shooed 8 | . 2 . . . 2 . 4 . Parts Field Recycled . | . . . . . . . . . Retrieved Matter . | . . . . . . . . . Parts Self-Destructed . | . . . . . . . . . Prevented . | . . . . . . . . . Kills | -11 -10 -10 -10 -9 -8 -8 -8 -7 ------- Run | Jun Mat Min Exi Min Mat Gar Mat Fac Combat Hostiles Destroyed 103 | . 12 . . 6 37 23 21 4 Guns 59 | . 4 . . . 31 19 4 1 Cannons 31 | . 8 . . 6 6 1 8 2 AOE 11 | . . . . . . 3 8 . Classes Destroyed 16 | 2 6 . . 1 3 2 1 1 Worker 14 | . 5 . . 2 3 . 4 . Builder 4 | . 1 . . 1 . . 2 . Tunneler 3 | 1 1 . . . 1 . . . Hauler 10 | . 2 . . . 4 . 4 . Recycler 17 | 1 3 1 . 3 3 . 6 . Operator 2 | . . . . . 1 . 1 . Watcher 13 | . 3 . . . 5 1 4 . Swarmer 25 | . 6 . . . 8 5 3 3 Cutter 3 | . . . . . . 3 . . Grunt 42 | . 6 . . 5 17 5 9 . Brawler 3 | . . . . 1 1 . 1 . Duelist 4 | . . . . . 1 . 3 . Sentry 20 | . . . . . 10 6 4 . Specialist 4 | . . . . . . 4 . . Hunter 1 | . . . . . . . 1 . Programmer 1 | . . . . . . . . 1 Thug 1 | . . . . . . 1 . . Best Kill Streak 17 | 2 4 1 . 3 4 5 17 3 Combat Bots Only 7 | . 3 . . 3 4 5 7 3 Max Kills in Single Turn 5 | 1 2 1 . 1 2 3 5 1 Gunslinging . | . . . . . . . . . Exploded 2 | . . . . . . 2 1 . Melee . | . . . . . . . . . Uniques/NPCs Destroyed . | . . . . . . . . . Combat | -11 -10 -10 -10 -9 -8 -8 -8 -7 -------- Run | Jun Mat Min Exi Min Mat Gar Mat Fac Damage Taken 3637 | . 255 . . 111 1225 988 831 227 Core 492 | . 35 . . 16 128 124 162 27 Absorbed by Shields 20 | . . . . . . . . 20 Regen/Repaired (Parts) 438 | . . . . . 438 . . . Core Remaining (%) 67 | 100 . . . 79 . . 24 . Volleys Fired 367 | 5 52 2 . 20 130 79 74 5 Largest 2 | 2 2 2 . 2 2 2 2 2 Hottest 136 | 40 120 120 . 120 136 125 125 125 Shots Fired 701 | 10 104 4 . 39 256 149 130 9 Gun 452 | 10 42 . . . 188 136 72 4 Cannon 225 | . 62 4 . 39 68 4 43 5 Launcher 24 | . . . . . . 9 15 . Special . | . . . . . . . . . Kinetic 311 | 10 36 . . . 95 94 72 4 Thermal 366 | . 68 4 . 39 161 46 43 5 Explosive 24 | . . . . . . 9 15 . Electromagnetic . | . . . . . . . . . Robot Hit Streak 27 | 6 25 19 . 22 27 20 20 24 Robot Miss Streak 3 | 1 2 . . 2 2 2 3 1 Penetration Max 2 | . . . . . . . 2 . Secondary Targets 7 | . 1 . . . 3 3 . . Max Gunslinging Chain 1 | . 1 . . . 1 1 . . Shots Hit Robots 505 | 8 74 3 . 25 194 100 87 14 Core Hits 251 | 4 35 . . 14 85 44 67 2 Critical Kills 10 | . 1 1 . . . 2 5 1 Critical Parts Destroyed 12 | . . . . . . 3 8 1 Critical Strikes 34 | . 1 1 . . 7 9 14 2 Burn 10 | . . . . . 6 4 . . Meltdown 3 | . 1 1 . . . . 1 . Destroy 20 | . . . . . 1 5 13 1 Smash 1 | . . . . . . . . 1 Melee Attacks 13 | . . . . . . 5 . 8 Impact 8 | . . . . . . . . 8 Slashing . | . . . . . . . . . Piercing . | . . . . . . . . . Sneak Attacks 5 | . . . . . . 5 . . Combat Hostiles . | . . . . . . . . . Follow-up Attacks . | . . . . . . . . . Damage Inflicted 11816 | 61 1066 51 . 446 3870 2505 3343 474 Guns 5469 | 61 303 . . . 2901 1600 582 22 Cannons 3647 | . 758 51 . 446 898 67 1286 141 Explosions 2384 | . . . . . 71 838 1475 . Melee 311 | . . . . . . . . 311 Ramming 5 | . 5 . . . . . . . Kinetic 3054 | 61 264 . . . 1281 844 582 22 Thermal 6530 | . 797 51 . 446 2518 823 1754 141 Explosive 1845 | . . . . . . 838 1007 . Electromagnetic 71 | . . . . . 71 . . . Impact 311 | . . . . . . . . 311 Slashing . | . . . . . . . . . Piercing . | . . . . . . . . . Highest Corruption 1 | . 1 1 1 1 . 1 1 . Average Corruption 1 | . 1 1 1 1 . 1 1 . Corruption Purged . | . . . . . . . . . Corruption Blocked 4 | . . . . . . . . 4 Effects 27 | . 4 8 2 6 . . 7 . Message Errors 7 | . . 2 1 2 . . 2 . Matter Fused 9 | . 3 2 . 2 . . 2 . Heat Flow Errors 2 | . . 1 . 1 . . . . Energy Discharges 3 | . . 1 . 1 . . 1 . Data Loss (minor) 5 | . 1 1 1 . . . 2 . Alerts 1 | . . 1 . . . . . . Overload Shots . | . . . . . . . . . Overflow Damage 279 | . . . . . 25 24 125 105 Projectiles 60 | . . . . . 25 . 13 22 Explosions 136 | . . . . . . 24 112 . Melee 83 | . . . . . . . . 83 Knockbacks . | . . . . . . . . . Impact . | . . . . . . . . . Kinetic . | . . . . . . . . . Secondary . | . . . . . . . . . Self-Inflicted Damage 52 | . 2 . . . 14 32 4 . Shots 3 | . . . . . 1 1 1 . Rammed 2 | . 2 . . . . . . . Targets Rammed 2 | . 2 . . . . . . . Kicked . | . . . . . . . . . Crushed . | . . . . . . . . . Highest Temperature 488 | . 150 239 . 248 299 252 488 120 Average Temperature 80 | . 36 92 . 87 88 63 109 51 Received Heat Transfer 1587 | . 105 . . 84 648 333 405 12 Effects 5 | . . . . 2 1 . 2 . Shutdowns 2 | . . . . . . . 2 . Energy Bleed 1 | . . . . . 1 . . . Interference 2 | . . . . 2 . . . . Siege Activations . | . . . . . . . . . Robots Corrupted . | . . . . . . . . . Combat Hostiles . | . . . . . . . . . Parts Fried . | . . . . . . . . . Impact Corruptions 6 | . . . . . . . . 6 Robots Melted 3 | . 1 1 . . . . 1 . Combat Hostiles 1 | . . . . . . . 1 . Parts Melted 34 | . 8 2 . 3 11 4 6 . Heat Transferred 11167 | . 1641 111 . 925 5032 1665 1645 148 Parts Sabotaged . | . . . . . . . . . Parts Stolen . | . . . . . . . . . Parts Stripped . | . . . . . . . . . Power Chain Reactions . | . . . . . . . . . Missiles Intercepted . | . . . . . . . . . Alert | -11 -10 -10 -10 -9 -8 -8 -8 -7 ------- Run | Jun Mat Min Exi Min Mat Gar Mat Fac Peak Influence 1240 | 10 197 6 . 155 299 1240 1053 410 Initial 520 | . 5 1 . . 4 14 520 310 Average 240 | 6 82 3 . 36 110 592 675 372 Maximum Alert Level 4 | . . . . . 1 4 3 2 Low Security (%) 63 | 100 100 100 . 100 78 12 . . Level 1 14 | . . . . . 21 18 . 86 Level 2 11 | . . . . . . 29 58 13 Level 3 10 | . . . . . . 34 41 . Level 4 . | . . . . . . 5 . . Level 5 . | . . . . . . . . . High Security . | . . . . . . . . . Max Security . | . . . . . . . . . Squads Dispatched 10 | . 1 . . 1 3 . 3 2 Investigation 6 | . 1 . . 1 2 . 1 1 Extermination 1 | . . . . . . . . 1 Reinforcement 2 | . . . . . 1 . 1 . Assault 1 | . . . . . . . 1 . Garrison . | . . . . . . . . . Intercept . | . . . . . . . . . Searches Triggered . | . . . . . . . . . Construction Impeded 1 | . . . . . . . 1 . Haulers Reinforced . | . . . . . . . . . Active Scanning Responses . | . . . . . . . . . Cargo Convoy Interrupts . | . . . . . . . . . Stealth | -11 -10 -10 -10 -9 -8 -8 -8 -7 --------- Run | Jun Mat Min Exi Min Mat Gar Mat Fac Distress Signals 5 | . 1 1 . . 2 1 . . Communications Jammed . | . . . . . . . . . Distress Signals . | . . . . . . . . . Times Spotted 140 | . 16 . . 5 49 35 30 5 Peak Tracking Total 6 | . 4 2 . 3 4 6 4 3 Tactical Retreats 4 | . . . . . 2 1 1 . Traps | -11 -10 -10 -10 -9 -8 -8 -8 -7 ------- Run | Jun Mat Min Exi Min Mat Gar Mat Fac Traps Triggered 11 | . 3 . . . 3 4 1 . Indirectly . | . . . . . . . . . Trap Hack Attempts . | . . . . . . . . . Triggered . | . . . . . . . . . Disarmed . | . . . . . . . . . Reprogrammed . | . . . . . . . . . Reused . | . . . . . . . . . Traps Extracted . | . . . . . . . . . Installed . | . . . . . . . . . Triggered . | . . . . . . . . . Machines | -11 -10 -10 -10 -9 -8 -8 -8 -7 ---------- Run | Jun Mat Min Exi Min Mat Gar Mat Fac Machines Disabled 19 | . . . . . 3 12 4 . Max in Single Turn 4 | . . . . . 2 2 4 . Garrison Access 1 | . . . . . . . 1 . Garrison Relay 6 | . . . . . . 6 . . Phase Generator 1 | . . . . . . 1 . . Machines Repaired . | . . . . . . . . . Machines Sabotaged . | . . . . . . . . . Overloaded Fab Kills . | . . . . . . . . . Hacking | -11 -10 -10 -10 -9 -8 -8 -8 -7 --------- Run | Jun Mat Min Exi Min Mat Gar Mat Fac Machines Accessed 41 | . 9 1 2 1 14 2 9 3 Terminals 27 | . 8 . . . 9 2 6 2 Fabricators . | . . . . . . . . . Repair Stations 2 | . . . . . 2 . . . Recycling Units 4 | . 1 . . . 1 . 1 1 Scanalyzers 2 | . . . . . 1 . 1 . Garrison Access 2 | . . . . . 1 . 1 . Total Hacks 138 | . 27 1 2 1 62 4 31 10 Successful 92 | . 16 1 2 1 45 2 20 5 Failed 44 | . 10 . . . 16 2 11 5 Catastrophic 7 | . 1 . . . 2 1 1 2 Database Lockouts 2 | . 1 . . . 1 . . . Manual 74 | . 19 . 1 . 29 . 16 9 Terminals 91 | . 24 . . . 34 4 21 8 Fabricators . | . . . . . . . . . Repair Stations 9 | . . . . . 9 . . . Recycling Units 8 | . 3 . . . 2 . 1 2 Scanalyzers 24 | . . . . . 16 . 8 . Garrison Access 2 | . . . . . 1 . 1 . Terminal Hacks 44 | . 12 1 2 1 16 2 7 3 Record 2 | . 1 . 1 . . . . . Part Schematic 1 | . 1 . . . . . . . Robot Analysis 9 | . 5 . . . 4 . . . Prototype ID Bank 3 | . 1 . . . 2 . . . Open Door 3 | . . 1 . 1 . 1 . . Open DSF 1 | . . . . . . . . 1 Level Access Points 1 | . . . . . 1 . . . Branch Access Points 3 | . . . . . 2 . 1 . Machine Index 1 | . . . . . 1 . . . Terminal Index 4 | . 1 . . . 1 . 1 1 Alert Level 8 | . 1 . . . 3 . 3 1 Unreport Threat 2 | . . . . . 1 . 1 . Hauler Manifests 3 | . 1 . . . 1 . 1 . Zone Layout 1 | . 1 . . . . . . . Patrol Navigation 1 | . . . . . . 1 . . EX-Prototype ID Bank 1 | . . . 1 . . . . . Fabricator Hacks . | . . . . . . . . . Repair Station Hacks 8 | . . . . . 8 . . . Scan Component 4 | . . . . . 4 . . . Repair 4 | . . . . . 4 . . . Recycling Unit Hacks 3 | . 1 . . . 1 . 1 . Report Inventory 3 | . 1 . . . 1 . 1 . Scanalyzer 23 | . . . . . 15 . 8 . Insert Component 9 | . . . . . 6 . 3 . Analyze 14 | . . . . . 9 . 5 . Garrison Access Hacks 2 | . . . . . 1 . 1 . Unlock Access 1 | . . . . . 1 . . . Seal Access 1 | . . . . . . . 1 . Unauthorized Hacks 12 | . 3 . . . 4 . 3 2 Terminals 8 | . 1 . . . 3 . 3 1 Botnet 8 | . 1 . . . 3 . 3 1 Fabricators . | . . . . . . . . . Repair Stations . | . . . . . . . . . Recycling Units 4 | . 2 . . . 1 . . 1 Reject 2 | . 1 . . . 1 . . . Recyclers 1 | . 1 . . . . . . . Mask 1 | . . . . . . . . 1 Scanalyzers . | . . . . . . . . . Garrison Access . | . . . . . . . . . Data Cores Recovered . | . . . . . . . . . Used . | . . . . . . . . . Hacking Detections 31 | . 7 . . . 12 2 8 2 Full Trace Events 6 | . . . . . 1 1 3 1 Feedback Events . | . . . . . . . . . Feedback Blocked . | . . . . . . . . . Robot Schematics Acquired . | . . . . . . . . . Robots Built . | . . . . . . . . . Authchips . | . . . . . . . . . Time . | . . . . . . . . . Total Robot Build Rating . | . . . . . . . . . Part Schematics Acquired 10 | . 1 . . . 6 . 3 . Parts Built . | . . . . . . . . . Authchips . | . . . . . . . . . Time . | . . . . . . . . . Total Part Build Rating . | . . . . . . . . . Parts Repaired 4 | . . . . . 4 . . . Time 140 | . . . . . 140 . . . Parts Recycled . | . . . . . . . . . Recycled Matter . | . . . . . . . . . Retrieved Matter . | . . . . . . . . . Retrieved Components . | . . . . . . . . . Parts Scanalyzed 9 | . . . . . 6 . 3 . Part Schematics Acquired 9 | . . . . . 6 . 3 . Parts Damaged . | . . . . . . . . . Bothacking | -11 -10 -10 -10 -9 -8 -8 -8 -7 ------------ Run | Jun Mat Min Exi Min Mat Gar Mat Fac Used RIF Installer . | . . . . . . . . . Robots Hacked . | . . . . . . . . . Non-combat . | . . . . . . . . . Combat . | . . . . . . . . . Robot Hacks Applied . | . . . . . . . . . Relay Couplers Released 23 | . . . . . . 23 . . Machine Destruction 23 | . . . . . . 23 . . Fabnet Peak Effective % . | . . . . . . . . . Robots Rewired 2 | . . . . . . 2 . . Allies Hacked . | . . . . . . . . . Hacks Repelled . | . . . . . . . . . Allies | -11 -10 -10 -10 -9 -8 -8 -8 -7 -------- Run | Jun Mat Min Exi Min Mat Gar Mat Fac Total Allies 2 | . . . . . . 2 . . Largest Group 2 | . . . . . . 2 . . Highest-Rated Group 70 | . . . . . . 70 . . Highest-Rated Ally 39 | . . . . . . 39 . . Total Orders 6 | . . 3 . . 3 . . . ROAM 1 | . . 1 . . . . . . EXPLORE 4 | . . 1 . . 3 . . . RETURN 1 | . . 1 . . . . . . Ally Attacks 50 | . . . . . . 50 . . Total Damage 464 | . . . . . . 464 . . Kills 5 | . . . . . . 5 . . Allies Corrupted . | . . . . . . . . . Allies Melted . | . . . . . . . . . Intel | -11 -10 -10 -10 -9 -8 -8 -8 -7 ------- Run | Jun Mat Min Exi Min Mat Gar Mat Fac Robot Analysis Total 8 | . 5 . . . 3 . . . Derelict Logs Recovered 2 | . . 1 . 1 . . . . Drone Launches 5 | . . 2 . . 3 . . . Drone Recoveries 5 | . . 2 . . 3 . . . Exploration | -11 -10 -10 -10 -9 -8 -8 -8 -7 ------------- Run | Jun Mat Min Exi Min Mat Gar Mat Fac Turns Passed 9392 | 41 1296 576 475 1071 3151 1294 1084 404 Spaces Moved 4509 | 20 827 223 248 534 1278 492 502 385 Core . | . . . . . . . . . Treads . | . . . . . . . . . Legs 9 | 9 . . . . . . . . Wheels 4318 | 11 827 223 248 534 1278 492 502 203 Hover . | . . . . . . . . . Flight 182 | . . . . . . . . 182 Fastest Speed 26 | 80 80 175 190 175 190 190 140 26 Average Speed 167 | 102 129 185 190 185 190 208 163 83 Slowest Speed 220 | 120 215 190 190 190 205 220 220 140 Overloaded Moves . | . . . . . . . . . Propulsion Burnouts . | . . . . . . . . . Robots Hopped . | . . . . . . . . . Cave-ins Triggered . | . . . . . . . . . Exploration Rate (%) 61 | 2 98 78 60 89 95 72 49 11 Regions Visited 8 Branch Regions 3 Pre-discovered Areas 1 | . . . 1 . . . . . Known Exits Taken 2 | . . . . . 1 . 1 . Unknown Exits Taken 5 | 1 1 1 1 1 . . . . Scrap Searched 2 | . . . . 2 . . . . Spaces Dug 6 | . . . . . 3 . 3 . Terrain Destroyed 172 | . . . . . 4 94 73 1 Melee . | . . . . . . . . . Projectile 13 | . . . . . 4 1 7 1 AOE 157 | . . . . . . 92 65 . Terrain Rammed . | . . . . . . . . . Walls Destroyed . | . . . . . . . . . Machines Disabled . | . . . . . . . . . Actions | -11 -10 -10 -10 -9 -8 -8 -8 -7 --------- Run | Jun Mat Min Exi Min Mat Gar Mat Fac Total 5713 | 33 955 382 255 579 1786 633 638 452 Wait 519 | . 39 155 . 16 268 9 18 14 Move 4501 | 19 826 222 247 533 1277 491 501 385 Hop . | . . . . . . . . . Pick Up 58 | 1 17 1 1 3 23 2 7 3 Fast Attach 52 | 3 5 1 . 1 23 7 9 3 Attach 23 | . . . 2 . 5 3 4 9 Detach 15 | 2 2 1 2 1 3 1 2 1 Swap 49 | . 4 . . 2 14 17 11 1 Drop 106 | 3 8 . 3 3 43 11 12 23 Fire 367 | 5 52 2 . 20 130 79 74 5 Melee 13 | . . . . . . 5 . 8 Ram 2 | . 2 . . . . . . . Kick . | . . . . . . . . . Crush . | . . . . . . . . . Escape Stasis 8 | . . . . . . 8 . . Rewire . | . . . . . . . . . Trap . | . . . . . . . . . Miscellaneous . | . . . . . . . . . Route ------- -11/Junkyard -10/Materials (discovered 4 exits: *Mat x3 / *Min) -10/Mines (discovered 2 exits: *Mat / *Exi) -10/Exiles -9/Mines (discovered 2 exits: *Mat x2) -8/Materials (discovered 4 exits: *Fac x3 / Gar) -8/Garrison (discovered 2 exits: *Mat x2) -8/Materials -7/Factory History --------- Turn | Location | Event 1 | -11/Junkyard | Discovered new exit (range 1) 42 | -11/Junkyard | Entered Materials 143 | -10/Materials | Discovered new exit (range 13) 329 | -10/Materials | Discovered new exit (range 15) 619 | -10/Materials | Discovered new exit (range 3) 622 | -10/Materials | Build established: Mutant 833 | -10/Materials | Central database locked down 865 | -10/Materials | Discovered new exit (range 16) 1338 | -10/Materials | Entered Mines 1382 | -10/Mines | Met a Derelict bent on vengeance 1415 | -10/Mines | Discovered new exit (range 16) 1448 | -10/Mines | Found the Drone Emporium 1466 | -10/Mines | Found Prototype Device 1466 | -10/Mines | Identified Sensor Drone Bay 1517 | -10/Mines | Identified exit to Materials 1517 | -10/Mines | Deemed a non-threat by the Exiles lab entrance 1517 | -10/Mines | Discovered new exit (range 5) 1779 | -10/Mines | Assembled infested the area 1779 | -10/Mines | Learned location of 1 exit from Materials 1914 | -10/Mines | Entered Exiles 1958 | -10/Exiles | Met 8R-AWN 1994 | -10/Exiles | Met EX-HEX 2051 | -10/Exiles | Met EX-BIN 2085 | -10/Exiles | Aligned with FarCom system 2087 | -10/Exiles | Given EX-Vault access code 2131 | -10/Exiles | Opened EX-Vault 2145 | -10/Exiles | Found YOLO Cannon 2182 | -10/Exiles | Warned to stay clear of 0b10 Research branches 2237 | -10/Exiles | Met EX-DEC 2252 | -10/Exiles | Learned location of Zion (-6) 2361 | -10/Exiles | Discovered new exit (range 12) 2389 | -10/Exiles | Left Exiles lab with YOLO Cannon 2389 | -10/Exiles | Entered Mines 2491 | -9/Mines | Met a Derelict shopkeep closing up shop 3123 | -9/Mines | Learned Materials emergency access door positions 3127 | -9/Mines | Discovered new exit (range 6) 3340 | -9/Mines | Discovered new exit (range 16) 3460 | -9/Mines | Entered Materials 3460 | -8/Materials | Evolved 4 slots: Propulsion x1, Utility x3 3461 | -8/Materials | Identified exit to Factory 4337 | -8/Materials | Discovered exit to Factory (range 13) 4894 | -8/Materials | Central database locked down 5334 | -8/Materials | Identified exit to Garrison 5414 | -8/Materials | Repaired Med. Armor Plating 5453 | -8/Materials | Repaired Minigun 5609 | -8/Materials | Build established: Scavenger-Mutant 6125 | -8/Materials | Build established: Mutant 6249 | -8/Materials | Repaired Hrd. Medium Armor Plating 6283 | -8/Materials | Repaired Med. Armor Plating 6611 | -8/Materials | Entered Garrison 6732 | -8/Garrison | Phase Generator disabled 6788 | -8/Garrison | Triggered checkpoint 6910 | -8/Garrison | Triggered checkpoint 6924 | -8/Garrison | Garrison Relay disabled 7088 | -8/Garrison | Triggered checkpoint 7097 | -8/Garrison | Triggered checkpoint 7194 | -8/Garrison | Discovered new exit (range 8) 7300 | -8/Garrison | Garrison Relay disabled 7546 | -8/Garrison | Triggered checkpoint 7722 | -8/Garrison | Triggered checkpoint 7726 | -8/Garrison | Garrison Relay disabled 7741 | -8/Garrison | Build established: Scavenger-Mutant 7838 | -8/Garrison | Garrison Relay disabled 7846 | -8/Garrison | Garrison Relay disabled 7851 | -8/Garrison | Garrison Relay disabled 7890 | -8/Garrison | Discovered new exit (range 5) 7905 | -8/Garrison | Entered Materials 8305 | -8/Materials | First assault squad dispatched 8417 | -8/Materials | Core integrity fell below 50% 8458 | -8/Materials | Build established: Mutant 8688 | -8/Materials | Destroyed 7 combat bots 8958 | -8/Materials | Discovered exit to Factory (range 11) 8989 | -8/Materials | Entered Factory 8989 | -7/Factory | Evolved 2 slots: Propulsion x1, Utility x1 9027 | -7/Factory | Identified exit to DSF 9393 | -7/Factory | Self-destructed Last Messages --------------- Awaiting botnet instructions. >>Index(Terminals) Found 26 terminals. Downloaded coordinate data. 09355_ ALERT: Suspicious activity at Terminal F001. Dispatching Investigation squad. 09372_ Destroyed Target Analyzer. 09372_ P-60 Hacker system corrupted by crushing effect. 09378_ Corruption Screen intercepted 1% system corruption. 09381_ VTOL Module destroyed. 09384_ Corruption Screen intercepted 1% system corruption. 09387_ Destroyed Gravmag System. 09387_ P-60 Hacker system corrupted by crushing effect. 09390_ P-60 Hacker suffers critical hit (Smash). 09390_ Destroyed Mic. Nuclear Core. 09390_ Destroyed Gravmag System. 09390_ Destroyed Imp. Heat Sink. 09390_ Destroyed Remote Datajack. 09390_ P-60 Hacker system corrupted by crushing effect. 09391_ P-60 Hacker system terminally corrupted. Map ----- +----------------------------------------------------+ | #### # """????? ##?????????? | | #### """ # """"?= ?????????? | | """ """ #### """ # """" ##?????????? | | "Y" """ """ #### """ # """" ##?????????? | | """ """ """ #### # """" ##?????????? | | #### # """" ##?????????? | | ####+#+####+########+### ##?????????? | | ##?????????? | | ##+############## ##?????????? | | # # # ##?????????? | | # ??????? # # ##?????????? | | # ??????? # # "Y" ##?????????? | | ####### ??????? # # """ ## ????????? | | ########???###### """ # ## ????????? | | """# """"" ?? ##### """ g + ????????? | | Y"# ""R"" + / """g# #### ????????? | | """# " " !!! ##### g# #### ????????? | | + !!! ##### #Y######+####???????????? | | # ! !! ##### "T" # ### ???????????? | | # #### """ # ##????????????????????? | | # ! ##### # ##????????????????????? | | ######################### ##????????????????????? | | # ######?######## ##????????????????????? | | + ##??????????### ###???????????????????? | | # ##??????????###%###???????????????????? | | # ##??????????##@ ##???????????????????? | | # ##???????? ##???????????????????? | | # ##???????? ### ##???????????????????? | | + ##???????? #### ###???????????????????? | | # [ ##??????????### ###???????????????????? | | ############??????????? + ????????????????????? | | #############??????????? # ?????????????????????? | | ##?????????????? # ????????????????????? | | ##?????????????? + ????????????????????? | | ##???????????????## T##??????????????????? | | " """ ##???????????????######??????????????????? | | " """"" ##????????????????#####??????????????????? | | " """"" ##???????????????????????????????????????? | | ?????????????????????????????????????????? | | ########?????????????????????????????????????????? | | | | | | | | | | | | | | | | | | | | | +----------------------------------------------------+ Best States ------------- Heat Dissipation 59 Coolant Potential 65 Energy Generation 19 Energy Capacity 310 Matter Stores 300 Matter Capacity 300 Sight Range 16 Terrain Scan Density 10 Corruption Block 8 Armor Coverage 675 Resistance: KI 20 Resistance: TH 20 Resistance: EX 20 Resistance: EM 20 Resistance: I 20 Resistance: S 20 Resistance: P 20 Evasion (%) 64 Armor Integrity Analysis 30 Recoil Reduction 1 Offensive Hacking 10 Item Schematics ----------------- Huge Storage Unit | -10/Materials | Hacked Datajack | -8/Materials | Scanalyzed Com. Wheel | -8/Materials | Scanalyzed Imp. VTOL Module | -8/Materials | Scanalyzed Imp. Heat Sink | -8/Materials | Scanalyzed Imp. Assault Rifle | -8/Materials | Scanalyzed Med. Armor Plating | -8/Materials | Scanalyzed Missile Launcher | -8/Materials | Scanalyzed Flight Unit | -8/Materials | Scanalyzed Mic. Fission Core | -8/Materials | Scanalyzed Robot Schematics ------------------ None Fabricated ------------ Nothing Alien Tech Used ----------------- None Achievements -------------- Safety First Challenges ------------ None Game ------ Seed MakeshiftFieldMace Manual? 0 Play Time 01:30:22 Cumulative 174.8 hours Start 2024.02.08 @ 18:55:46 End 2024.02.15 @ 23:47:36 Sessions 3 Manual Loads 0 Difficulty Adventurer Special Mode None Game No. 132 Rogue 0 Adventurer 132 Explorer 0 Win Type - Total 2 Types 2/0/0/0/0/0/0/0/0 Lore% 60 Gallery% 64 Achievement% 54 Wizard Run 0 Options --------- ASCII 0 Keyboard 0 Movement Mouse Keybinds 0 Fullscreen 2 Font 20/SmallcapsGlow Map View 66x50 Tactical HUD 1 Map Filters NONE Filters NONE Steam X RUN: adf7a552-6298-4dce-9a57-f766eed5a8af